Cogmind - Beta 13 @@@ ROGUE MODE // 2024.03.05 @ 13:57:15 Player: ktur Result: Destroyed by H4-F7E(R) with Subdweller Laser Performance ------------- Evolutions (0) 0 Regions Visited (2) 400 Robots Destroyed (29) 145 Value Destroyed (663) 663 Prototype IDs (14) 280 Alien Tech Used (0) 0 Bonus (0) 0 TOTAL SCORE: 1488 Bonus ------- None Cogmind --------- Core Integrity 0/250 Matter 60/300 Energy 196/200 System Corruption 0% Temperature Cool (8) Movement Treading (240) Ox1 Location -10/Subcaves Parts ------- > --- POWER (1) -------- Subdweller Power Source > --- PROPULSION (2) --- Light Treads Light Treads > --- UTILITY (2) ------ Large Storage Unit Seismic Detector > --- WEAPON (2) ------- Subdweller Beam Cannon Subdweller Shrapnel Launcher > --- INVENTORY (15) --- Light Ion Engine Cargo Legs Compact Wheel Disposable Heat Sink Huge Storage Unit Core Shielding Subdweller Laser Assault Rifle Grenade Launcher Rocket Launcher Rocket Launcher Hammer Peak State ------------ > --- POWER ------------ Subdweller Power Source > --- PROPULSION ------- Light Treads Light Treads > --- UTILITY ---------- Large Storage Unit Core Shielding > --- WEAPON ----------- Subdweller Beam Cannon Battle Cannon > --- INVENTORY -------- Light Ion Engine Light Treads Cargo Legs Compact Wheel Huge Storage Unit Seismic Detector Subdweller Laser Assault Rifle Grenade Launcher Rocket Launcher Rocket Launcher Subdweller Shrapnel Launcher Hammer [Rating: 13] Favorites ----------- Power Ion Engine Engine Ion Engine Propulsion Light Treads Treads Light Treads Utility Large Storage Unit Device Seismic Detector Storage Large Storage Unit Protection Core Shielding Weapon Subdweller Beam Cannon Energy Gun Medium Laser Energy Cannon Subdweller Beam Cannon Ballistic Gun Assault Rifle Ballistic Cannon Battle Cannon Launcher Subdweller Shrapnel Launcher Impact Weapon Hammer Build | -11 -10 -10 ------- Run | Yrd Mat Sub Slots Evolved . | . . . Power . | . . . Propulsion . | . . . Utility . | . . . Weapon . | . . . Parts Attached 45 | 6 10 29 Power 4 | . 2 2 Engine 4 | . 2 2 Core . | . . . Reactor . | . . . Propulsion 7 | 2 2 3 Treads 7 | 2 2 3 Leg . | . . . Wheel . | . . . Hover . | . . . Flight . | . . . Utility 11 | 2 1 8 Device 5 | 1 . 4 Storage 2 | 1 1 . Processor . | . . . Hackware . | . . . Protection 4 | . . 4 Artifact . | . . . Weapon 23 | 2 5 16 Energy Gun 3 | 1 1 1 Energy Cannon 4 | . . 4 Ballistic Gun 4 | 1 2 1 Ballistic Cannon 2 | . . 2 Launcher 8 | . 2 6 Special Weapon . | . . . Impact Weapon 2 | . . 2 Slashing Weapon . | . . . Piercing Weapon . | . . . Special Melee Weapon . | . . . Unidentified Prototypes . | . . . Parts Lost 4 | . . 4 Power 1 | . . 1 Propulsion 2 | . . 2 Utility . | . . . Weapon 1 | . . 1 Highest Loss Streak 2 | . . 2 To Critical Strikes . | . . . Average Slot Usage (%) 98 | . 96 99 Engine 12 | . 10 13 Treads 27 | . 28 27 Device 11 | . 14 10 Storage 14 | . 14 14 Protection 2 | . . 3 Energy Gun 4 | . 13 . Energy Cannon 9 | . . 12 Ballistic Gun 4 | . 13 . Ballistic Cannon 4 | . . 6 Launcher 1 | . . 1 Impact Weapon 3 | . . 5 Naked Turns . | . . . Heaviest Build 42 | 10 32 42 Greatest Support 40 | 40 40 40 Greatest Overweight (x) 1 | . . 1 Average Overweight (x) . | . . . Largest Inventory Capacity 15 | 8 15 15 Average Capacity 14 | 6 14 15 Most Carried 15 | 7 15 15 Average Carried 13 | 4 12 14 Final Capacity 15 | 8 15 15 Final Carried 15 | 6 15 13 Class Distribution -------------------- 62% | Mutant 37% | Scavenger-Mutant Dominant Class ---------------- Mutant | -10/Materials Mutant | -10/Subcaves Resources | -11 -10 -10 ----------- Run | Yrd Mat Sub Matter Collected 896 | 135 401 360 Remotely . | . . . Salvage Created 897 | 22 543 332 Parts 61 | 4 27 30 Haulers Intercepted 2 | . 2 . Recyclers Shooed 3 | . 3 . Parts Field Recycled . | . . . Retrieved Matter . | . . . Parts Self-Destructed 18 | . . 18 Prevented . | . . . Kills | -11 -10 -10 ------- Run | Yrd Mat Sub Combat Hostiles Destroyed 20 | . 6 14 Guns 4 | . 3 1 Cannons 3 | . . 3 AOE 13 | . 3 10 Classes Destroyed 9 | 1 6 2 Tunneler 2 | 2 . . Hauler 2 | . 2 . Recycler 3 | . 3 . Operator 1 | . 1 . Watcher 1 | . 1 . Swarmer 7 | . 3 4 Grunt 3 | . 3 . Artisan 1 | . . 1 Subdweller 10 | . . 10 Best Kill Streak 4 | 2 4 4 Combat Bots Only 4 | . 3 4 Max Kills in Single Turn 4 | 1 1 4 Gunslinging . | . . . Exploded 4 | . 1 4 Melee . | . . . Uniques/NPCs Destroyed . | . . . Combat | -11 -10 -10 -------- Run | Yrd Mat Sub Hostile Shots Fired 84 | . 29 55 Missed 21 | . 4 17 Damage Taken 1149 | . 260 889 Core 255 | . 44 211 Absorbed by Shields . | . . . Redirected to Shielding 36 | . . 36 Core Remaining (%) 100 | 100 . . Volleys Fired 68 | 6 37 25 Largest 2 | 2 2 2 Hottest 119 | 70 70 119 Shots Fired 112 | 12 66 34 Gun 77 | 12 59 6 Cannon 12 | . . 12 Launcher 23 | . 7 16 Special . | . . . Kinetic 57 | 6 30 21 Thermal 44 | 6 29 9 Explosive 11 | . 7 4 Electromagnetic . | . . . Robot Hit Streak 11 | 7 6 11 Robot Miss Streak 7 | 1 7 2 Penetration Max . | . . . Secondary Targets 1 | . 1 . Max Gunslinging Chain 1 | . 1 . Shots Hit Robots 77 | 9 38 30 Core Hits 48 | 2 22 24 Critical Kills . | . . . Critical Parts Destroyed 1 | . . 1 Critical Strikes 4 | 1 . 3 Burn 2 | 1 . 1 Smash 2 | . . 2 Melee Attacks 26 | . . 26 Impact 26 | . . 26 Slashing . | . . . Piercing . | . . . Sneak Attacks . | . . . Combat Hostiles . | . . . Follow-up Attacks . | . . . Damage Inflicted 2773 | 115 678 1980 Guns 670 | 115 491 64 Cannons 236 | . . 236 Explosions 1547 | . 184 1363 Melee 317 | . . 317 Ramming 3 | . 3 . Kinetic 1501 | 52 274 1175 Thermal 458 | 63 217 178 Explosive 494 | . 184 310 Electromagnetic . | . . . Impact 317 | . . 317 Slashing . | . . . Piercing . | . . . Highest Corruption . | . . . Average Corruption . | . . . Corruption Purged . | . . . Corruption Blocked . | . . . Overload Shots . | . . . Overflow Damage 103 | . . 103 Projectiles . | . . . Explosions 37 | . . 37 Melee 66 | . . 66 Knockbacks 4 | . . 4 Impact 2 | . . 2 Kinetic 2 | . . 2 Secondary . | . . . Self-Inflicted Damage 34 | . . 34 Shots 2 | . . 2 Rammed 2 | . 2 . Targets Rammed 2 | . 2 . Kicked . | . . . Crushed . | . . . Highest Temperature 54 | . 54 8 Average Temperature 18 | . 19 7 Received Heat Transfer 186 | . 57 129 Siege Activations . | . . . Robots Corrupted . | . . . Combat Hostiles . | . . . Parts Fried 2 | . . 2 Impact Corruptions 2 | . . 2 Robots Melted . | . . . Combat Hostiles . | . . . Parts Melted 2 | 1 1 . Heat Transferred 1258 | 259 629 370 Parts Sabotaged . | . . . Parts Stolen . | . . . Parts Stripped . | . . . Power Chain Reactions . | . . . Alert | -11 -10 -10 ------- Run | Yrd Mat Sub Peak Influence 216 | 10 216 . Initial 6 | . 6 . Average 81 | 2 88 . Maximum Alert Level 1 | . 1 . Low Security (%) 94 | 100 94 . Level 1 5 | . 5 . Level 2 . | . . . Level 3 . | . . . Level 4 . | . . . Level 5 . | . . . High Security . | . . . Max Security . | . . . Squads Dispatched 1 | . 1 . Investigation . | . . . Extermination . | . . . Reinforcement 1 | . 1 . Assault . | . . . Garrison . | . . . Intercept . | . . . Searches Triggered . | . . . Construction Impeded . | . . . Haulers Reinforced . | . . . Active Scanning Responses . | . . . Cargo Convoy Interrupts . | . . . Stealth | -11 -10 -10 --------- Run | Yrd Mat Sub Distress Signals . | . . . Communications Jammed . | . . . Distress Signals . | . . . Times Spotted 36 | . 17 19 Peak Tracking Total 4 | . 3 4 Tactical Retreats 1 | . . 1 Traps | -11 -10 -10 ------- Run | Yrd Mat Sub Traps Triggered 3 | . 1 2 Indirectly . | . . . Trap Hack Attempts . | . . . Triggered . | . . . Disarmed . | . . . Reprogrammed . | . . . Reused . | . . . Traps Extracted . | . . . Installed . | . . . Triggered . | . . . Machines | -11 -10 -10 ---------- Run | Yrd Mat Sub Machines Disabled 2 | . 1 1 Max in Single Turn 1 | . 1 1 Machines Repaired . | . . . Machines Dismantled . | . . . Machines Sabotaged . | . . . Overloaded Fab Kills . | . . . Hacking | -11 -10 -10 --------- Run | Yrd Mat Sub Machines Accessed 6 | . 4 2 Terminals 4 | . 4 . Fabricators . | . . . Repair Stations . | . . . Recycling Units . | . . . Scanalyzers . | . . . Garrison Access . | . . . Total Hacks 15 | . 11 4 Successful 10 | . 6 4 Failed 5 | . 5 . Catastrophic 3 | . 3 . Database Lockouts . | . . . Manual 8 | . 8 . Terminals 11 | . 11 . Fabricators . | . . . Repair Stations . | . . . Recycling Units . | . . . Scanalyzers . | . . . Garrison Access . | . . . Terminal Hacks 9 | . 5 4 Record 3 | . . 3 Robot Schematic 1 | . 1 . Robot Analysis 2 | . 2 . Prototype ID Bank 2 | . 2 . Derelict Proto ID Bank 1 | . . 1 Fabricator Hacks . | . . . Repair Station Hacks . | . . . Recycling Unit Hacks . | . . . Scanalyzer . | . . . Garrison Access Hacks . | . . . Unauthorized Hacks 1 | . 1 . Terminals 1 | . 1 . Botnet 1 | . 1 . Fabricators . | . . . Repair Stations . | . . . Recycling Units . | . . . Scanalyzers . | . . . Garrison Access . | . . . Data Cores Recovered . | . . . Used . | . . . Hacking Detections 4 | . 4 . Full Trace Events . | . . . Feedback Events . | . . . Feedback Blocked . | . . . Robot Schematics Acquired 1 | . 1 . Robots Built . | . . . Authchips . | . . . Time . | . . . Total Robot Build Rating . | . . . Part Schematics Acquired . | . . . Parts Built . | . . . Authchips . | . . . Time . | . . . Total Part Build Rating . | . . . Parts Repaired . | . . . Time . | . . . Parts Recycled . | . . . Recycled Matter . | . . . Retrieved Matter . | . . . Retrieved Components . | . . . Parts Scanalyzed . | . . . Part Schematics Acquired . | . . . Parts Damaged . | . . . Bothacking | -11 -10 -10 ------------ Run | Yrd Mat Sub Used RIF Installer . | . . . Robots Hacked . | . . . Non-combat . | . . . Combat . | . . . Robot Hacks Applied . | . . . Relay Couplers Released . | . . . Fabnet Peak Effective % . | . . . Robots Rewired . | . . . Allies Hacked . | . . . Hacks Repelled . | . . . Allies | -11 -10 -10 -------- Run | Yrd Mat Sub Total Allies . | . . . Largest Group . | . . . Highest-Rated Group . | . . . Highest-Rated Ally . | . . . Total Orders . | . . . Ally Attacks . | . . . Total Damage . | . . . Kills . | . . . Allies Corrupted . | . . . Allies Melted . | . . . Intel | -11 -10 -10 ------- Run | Yrd Mat Sub Robot Analysis Total 2 | . 2 . Derelict Logs Recovered 2 | . . 2 Drone Launches . | . . . Drone Recoveries . | . . . Exploration | -11 -10 -10 ------------- Run | Yrd Mat Sub Turns Passed 3508 | 90 987 2431 Spaces Moved 1884 | 39 501 1344 Core 5 | 5 . . Treads 1879 | 34 501 1344 Legs . | . . . Wheels . | . . . Hover . | . . . Flight . | . . . Fastest Speed 50 | 50 160 160 Average Speed 164 | 145 160 166 Slowest Speed 240 | 160 160 240 Overloaded Moves . | . . . Propulsion Burnouts . | . . . Robots Hopped . | . . . Cave-ins Triggered . | . . . Exploration Rate (%) 46 | 4 61 73 Regions Visited 2 Branch Regions 1 Pre-discovered Areas 1 | . . 1 Known Exits Taken . | . . . Unknown Exits Taken 2 | 1 1 . Scrap Searched 12 | . . 12 Spaces Dug 25 | . . 25 Terrain Destroyed 178 | . 35 143 Melee 11 | . . 11 Projectile 2 | . . 2 AOE 165 | . 35 130 Terrain Rammed . | . . . Walls Destroyed . | . . . Machines Disabled . | . . . Actions | -11 -10 -10 --------- Run | Yrd Mat Sub Total 2135 | 58 622 1455 Wait 58 | . 43 15 Move 1882 | 38 500 1344 Hop . | . . . Pick Up 33 | 8 19 6 Fast Attach 7 | 4 . 3 Attach 8 | 2 2 4 Detach 1 | . . 1 Swap 30 | . 8 22 Drop 20 | . 11 9 Fire 68 | 6 37 25 Melee 26 | . . 26 Ram . | . . . Kick . | . . . Crush 2 | . 2 . Escape Stasis . | . . . Rewire . | . . . Trap . | . . . Miscellaneous . | . . . Route ------- -11/Scrapyard -10/Materials (discovered 4 exits: [*Mat] / [*Min x2] / *Sub) -10/Subcaves (discovered 1 exit: [*Rec]) History --------- Turn | Location | Event 5 | -11/Scrapyard | Discovered new exit (range 15) 91 | -11/Scrapyard | Entered Materials 176 | -10/Materials | Discovered new exit (range 16) 234 | -10/Materials | Discovered new exit (range 10) 315 | -10/Materials | Build established: Mutant 462 | -10/Materials | Discovered new exit (range 16) 946 | -10/Materials | Discovered new exit (range 10) 1078 | -10/Materials | Entered Subcaves 1084 | -10/Subcaves | Ambushed by Subdwellers from Twisted Machinery 1147 | -10/Subcaves | Build established: Scavenger-Mutant 1189 | -10/Subcaves | Shifting Twisted Machinery released Flamer 1193 | -10/Subcaves | Shifting Twisted Machinery released Sub. Shrapnel Launcher 1305 | -10/Subcaves | Discovered new exit (range 15) 1465 | -10/Subcaves | Learned Materials garrison access intel 1895 | -10/Subcaves | Visited 4L-MR0's lab 1915 | -10/Subcaves | Found Cargo Legs 2187 | -10/Subcaves | Core integrity fell below 50% 2454 | -10/Subcaves | Build established: Mutant 2606 | -10/Subcaves | Visited Clippyterm 2610 | -10/Subcaves | Learned Factory garrison access intel 3074 | -10/Subcaves | Shifting Twisted Machinery released Sub. Power Source 3086 | -10/Subcaves | Shifting Twisted Machinery released Shrapnel Trap 3233 | -10/Subcaves | Ambushed by Subdweller buried in earth 3235 | -10/Subcaves | Core integrity fell below 20% 3348 | -10/Subcaves | Learned location of Zion (-6) 3509 | -10/Subcaves | Destroyed by H4-F7E(R) with Subdweller Laser Last Messages --------------- 02700_ Found 31 Matter. 02935_ Sub. Power Source shoots sparks and powers down. Sub. Power Source falls loose from the Twisted Machinery. Shrapnel Trap falls loose from the Twisted Machinery. 03118_ Dropped Broken Sub. Power Source. 03180_ Acquired 20 matter. 03226_ Destroyed Wheel. 03228_ Destroyed Multitool. 03231_ Q5-2PN(u) cries out in pain. 03231_ Q5-2PN(u) destroyed. 03233_ 7X-NF5(R) destroyed. 03234_ UN-VIJ(R): "NAT20!" 03237_ Destroyed Scrap Shield. 03238_ Lgt. Treads destroyed. 03239_ 60-KYW(R) destroyed. 03242_ Battle Cannon destroyed. 03246_ Destroyed Scrap Shield. 03246_ UN-VIJ(R) destroyed. 03348_ Acquired derelict log, extracted data. World map updated: -6/Zion. Map ----- +----------------------------------------------------+ | ?????????????????????????????????????????????????? | | ?????????????????????????????????????????????????? | | ?????????????????????????????????????????????????? | | ?????????????????????????????????????????????????? | | ?????????????????????????????????????????????????? | | ?????????????????????????????????????????????????? | | ?????????????????????????????????????????????????? | | ?????????????????????????????????????????????????? | | ?????????????????????????????????"???????????????? | | ?????????????????????????????????"???????????????? | | ????????????????????????????????? ???????????????? | | ?????????????????????????????????"???????????????? | | ????????????????????????????##### ???????????????? | | ???????????????????????????##" "???????????????? | | ???????????????????????????#" "???????????????? | | ?????????????????????????### ???????????????? | | ?????????????????????????#" ##??????????????? | | ?????????????????????????#" ##?????????????? | | ??????????????????????????# ##????????????? | | ?????????????????????????## #????????????? | | ?????????????????????????# ##????????????? | | ??????????? ## ???####?###### ##?????????????? | | ???????????# ## #?????## #?????????????? | | ????????????# ##?### ##?????????????? | | ?????????????# ### ##?????????????? | | ?????????????# @ #?????????????? | | ?????????????# ## #?????????????? | | ?????????????# R ???## #?????????????? | | ??????????? ##??????## #?????????????? | | ??????????? ????????????## #?????????????? | | ?????????????????#####??????## ##?????????????? | | ????????????????? ???????### ###????????????? | | ?????????????????? ?????????# #????????????? | | ?????????????????? % ##???????# ##????????????? | | ?????????????????? ##????### ##????????????? | | ??????????????????? ##??## #????????????? | | ???????"???????????## #??# #????????????? | | ?????#" ??????????# #??# ##????????????? | | ?????" ?????????## ##### ##????????????? | | ????? ?????????# ## #????????????? | | ?????? ???????????# ##???????????? | | ?????? #???????#### #???????????? | | ?????? ??????## ## ##???????????? | | ??????# ?????## ##????????????? | | ??????# ???### ## ## #?????????????? | | ?????## #??## ### ### #????????????? | | ?????# #### ## #?## #?## #????????????? | | ???#### # # ## #??## #??# ###????????????? | | #?## ## # # ##??###??###??????????????? | | ### #????????????????????????? | +----------------------------------------------------+ Best States ------------- Heat Dissipation 25 Energy Generation 15 Energy Capacity 250 Matter Stores 300 Matter Capacity 300 Sight Range 16 Terrain Scan Density 10 Core Shielding 20 Evasion (%) 40 Recoil Reduction 2 Item Schematics ----------------- None Robot Schematics ------------------ M-13 Machinist | -10/Materials | Hacked Fabricated ------------ Nothing Alien Tech Used ----------------- None Achievements -------------- None Challenges ------------ None Game ------ Seed PointDispersionScrap Manual? 0 Play Time 00:18:26 Cumulative 759.5 hours Start 2024.03.04 @ 06:24:52 End 2024.03.05 @ 13:57:15 Sessions 4 Manual Loads 0 Difficulty Rogue Special Mode None Game No. 702 Rogue 702 Adventurer 0 Explorer 0 Win Type - Total 39 Types 14/4/11/2/0/0/5/2/1 Lore% 93 Gallery% 95 Achievement% 84 Wizard Run 0 Options --------- Layout 0 ASCII 0 Keyboard 0 Movement Numpad Keybinds 0 Fullscreen 1 Font 18/Smallcaps Map View 76x50 Zoom Use 0% Tactical HUD 1 Map Filters NONE Filters NONE Steam 1 RUN: 7ea9d6c8-b8f4-41a8-ae89-85917949a093